bitfinex/quotes_ETHUSD_20220308
["timestamp","ask_amount","ask_price","bid_price","bid_amount"]
[1646766325260,0.00335109,2562.1,2561.7,2.9285]
[1646766325461,0.00335109,2562.1,2561.8,0.00090603]
[1646766326466,0.3019498,2563.0,2561.8,0.97703603]
[1646766326467,11.9319498,2563.0,2561.8,0.97703603]
[1646766326662,11.6319498,2563.0,2562.0,0.97621]
[1646766326912,11.6319498,2563.0,2562.2,0.87109722]
[1646766327303,12.0116,2562.9,2562.2,0.87109722]
[1646766327501,12.0116,2562.9,2562.1,0.3]
[1646766327502,0.01036676,2562.2,2562.1,0.3]
[1646766327703,0.01036676,2562.2,2561.9,0.97627]
[1646766328206,0.01036676,2562.2,2561.8,0.01844199]
[1646766328409,11.63,2562.0,2561.8,0.01844199]
[1646766328805,12.0116,2561.9,2561.8,0.01844199]
[1646766329007,12.60657,2562.1,2561.8,0.01844199]
[1646766329206,11.63,2562.1,2561.8,0.01844199]
[1646766329408,0.01036676,2562.2,2561.8,0.01844199]
[1646766330310,0.00364009,2562.1,2561.8,0.01844199]
[1646766330756,0.00364009,2562.1,2561.8,0.01753596]
[1646766331355,0.98401685,2562.1,2561.8,0.01753596]
[1646766331563,11.63,2562.0,2561.8,0.01753596]
[1646766331761,12.0116,2562.0,2561.8,0.01753596]
[1646766332058,12.0116,2562.0,2561.7,0.0174669]
[1646766332257,13.4796,2562.0,2561.7,0.0174669]
[1646766332456,16.9796,2562.0,2561.7,0.0174669]
[1646766332655,13.4796,2562.0,2561.7,0.0174669]
[1646766332859,12.92044293,2561.8,2561.7,0.0174669]
[1646766333062,12.0116,2561.8,2561.7,0.0174669]
[1646766333355,12.98831,2561.8,2561.7,0.0174669]
[1646766334156,12.60671,2561.8,2561.7,0.0174669]
[1646766334901,0.98692676,2562.2,2561.7,0.0174669]
[1646766335102,0.00327951,2562.1,2561.7,0.0174669]
[1646766335502,0.00327951,2562.1,2561.7,0.01837485]
[1646766335907,12.0116,2561.8,2561.7,0.01837485]
[1646766336107,12.72007179,2561.8,2561.7,0.01837485]
[1646766337105,12.98839,2561.8,2561.7,0.01837485]
[1646766337307,12.98839,2561.8,2561.2,0.007]
[1646766337308,0.00082515,2561.7,2561.2,0.007]
[1646766337508,12.4796,2561.6,2561.2,0.007]
[1646766337705,13.7296,2561.6,2561.2,0.007]
[1646766337905,14.0296,2561.6,2561.2,0.007]
[1646766338149,15.98347,2561.6,2561.2,0.007]
[1646766338652,15.98347,2561.6,2561.3,0.00390994]
[1646766338653,12.0116,2561.4,2561.3,0.00390994]
[1646766339049,11.63,2561.4,2561.3,0.00390994]
[1646766339249,11.63,2561.2,2560.5,0.26846705]
[1646766339652,0.97668,2561.8,2561.1,0.84473379]
[1646766339851,0.3103561,2562.0,2561.2,0.00390998]
[1646766340050,2.33511,2561.9,2561.2,0.00390998]
[1646766340654,2.33511,2561.9,2561.4,0.0008002]
[1646766340655,11.63,2561.6,2561.4,0.0008002]
[1646766341055,0.0103561,2562.0,2561.4,0.0008002]
[1646766342101,0.0103561,2562.0,2561.6,0.73604245]
[1646766342701,1.95301,2562.6,2561.6,0.73604245]
[1646766342702,11.64075245,2562.5,2561.6,0.73604245]
[1646766342902,0.01075245,2562.5,2561.6,0.73604245]
[1646766343604,0.01075245,2562.5,2559.8,0.95035969]
[1646766343605,3.0,2561.7,2559.8,0.95035969]
[1646766343807,3.0,2561.7,2559.5,0.0351423]
[1646766343808,0.01221871,2560.5,2559.9,0.20589003]
[1646766344008,0.0125009,2560.0,2559.5,0.0351423]
[1646766344207,0.468,2559.9,2559.5,0.0351423]
[1646766344407,0.468,2559.9,2559.4,0.05061172]
[1646766344408,11.63,2559.6,2559.4,0.05061172]
[1646766344710,11.63,2559.6,2559.3,0.0182188]
[1646766344711,12.9894778,2559.4,2559.3,0.0182188]
[1646766344914,12.9894778,2559.4,2558.4,0.0193137]
[1646766344915,14.63,2558.9,2558.4,0.0193137]
[1646766345108,14.63,2558.9,2558.6,0.03040374]
[1646766345109,0.468,2558.8,2558.6,0.03040374]
[1646766345959,1.44579,2558.8,2558.6,0.03040374]
[1646766346155,13.07579,2558.8,2558.6,0.03040374]
[1646766346359,13.0517278,2558.8,2558.6,0.03040374]
[1646766348157,13.0517278,2558.8,2558.4,0.0193137]
[1646766348158,6.0,2558.7,2558.4,0.0193137]
[1646766348358,13.4333278,2558.8,2558.4,0.0193137]
[1646766348359,12.098,2558.6,2558.4,0.0193137]
[1646766349157,0.468,2558.6,2558.4,0.0193137]
[1646766349606,0.468,2558.6,2558.4,0.02324444]
[1646766350308,2.1485755,2558.5,2558.4,0.02324444]
[1646766350510,1.95509,2559.6,2558.4,3.90484444]
[1646766350711,0.25,2559.9,2558.4,3.90484444]
[1646766350912,0.3,2560.0,2558.7,0.3816]
[1646766350913,0.97733,2560.0,2558.7,0.3816]
[1646766351111,0.468,2560.2,2558.9,0.3816]
[1646766351112,1.95466,2559.5,2558.9,0.3816]
[1646766351312,1.95466,2559.5,2559.1,0.86084811]
[1646766351514,0.25,2559.4,2558.9,0.3816]
[1646766352111,0.25,2559.4,2558.5,0.00145963]
[1646766352112,1.95488,2559.3,2558.5,0.00145963]
[1646766352312,1.95488,2559.3,2558.4,0.3]
[1646766352511,1.95488,2559.3,2558.9,0.3816]
[1646766353156,0.25,2559.4,2558.9,0.3816]
[1646766353360,6.4328703,2560.3,2558.9,0.3816]
[1646766353361,0.97724,2559.7,2558.9,0.6816]
[1646766353558,0.14198291,2560.4,2559.0,0.3816]
[1646766353760,0.14198291,2560.4,2559.0,3.3816]
[1646766353958,0.14198291,2560.4,2559.0,0.38305963]
[1646766354161,0.14198291,2560.4,2559.0,1.38305963]
[1646766354358,0.14576643,2560.4,2559.5,0.00378486]
[1646766354559,1.22705,2560.2,2559.5,0.00378486]
[1646766355564,1.22705,2560.2,2559.7,0.00378468]
[1646766356670,1.22705,2560.2,2559.8,0.00181683]
[1646766357701,0.97734,2560.1,2559.8,0.00181683]
[1646766357905,0.97734,2560.1,2559.9,0.00149988]
[1646766358305,1.52705,2560.2,2559.9,0.00149988]
[1646766358704,1.22705,2560.2,2559.9,0.00149988]
[1646766359306,1.22705,2560.2,2559.9,0.00299973]
[1646766359602,1.22705,2560.2,2559.9,0.00149985]
[1646766361959,0.01954941,2560.0,2559.9,0.00371353]
[1646766362153,0.00371286,2560.4,2560.0,1.11171428]
[1646766362548,0.00371286,2560.4,2560.0,1.41171428]
[1646766362748,0.00583358,2560.4,2560.0,1.03011428]
[1646766362951,0.00583358,2560.4,2560.0,1.41171428]
[1646766362952,0.00212072,2560.4,2560.0,1.41171428]
[1646766363147,0.00212072,2560.4,2560.0,1.03011428]
[1646766363848,0.00212072,2560.4,2560.1,0.3816]
[1646766364050,0.00212093,2560.4,2560.1,0.3816]
[1646766364249,0.00212093,2560.4,2560.0,1.03011428]
[1646766364496,0.00212093,2560.4,2559.5,0.00145963]
[1646766364690,0.00212093,2560.4,2559.4,0.768]
[1646766364893,1.95615093,2560.4,2559.5,0.3816]
[1646766365090,1.95615093,2560.4,2559.3,0.00145963]
[1646766365292,1.95615093,2560.4,2560.0,0.00379241]
[1646766365293,4.7807918,2560.4,2560.0,0.00379241]
[1646766365490,4.7807918,2560.4,2559.3,0.01663305]
[1646766365491,0.0086134,2559.6,2559.3,0.01663305]
[1646766365695,0.2586134,2559.6,2559.3,0.01517342]
[1646766365994,0.0086134,2559.6,2559.3,0.01517342]
[1646766366495,0.0086134,2559.6,2559.3,1.24517303]
[1646766366698,0.0086134,2559.6,2559.5,3.0]
[1646766366895,0.0086134,2559.6,2559.5,15.398]
[1646766367097,0.0086134,2559.6,2559.5,1.3]
[1646766367295,0.0086134,2559.6,2559.4,0.3]
[1646766367594,0.0086134,2559.6,2559.3,0.86357303]
[1646766367795,0.0086134,2559.6,2558.8,0.46945963]
[1646766367995,0.0086134,2559.6,2558.6,1.2073]
[1646766368242,0.0086134,2559.6,2558.5,1.15695963]
[1646766368442,0.0086134,2559.6,2558.4,0.3816]
[1646766368443,0.9858434,2559.6,2558.4,0.3816]
[1646766368841,0.9858434,2559.6,2558.5,0.82464562]
[1646766369444,0.9858434,2559.6,2558.6,0.3816]
[1646766369749,0.9858434,2559.6,2558.5,4.02021313]
[1646766369750,0.0086134,2559.6,2559.2,0.3816]
[1646766369943,0.0086134,2559.6,2559.2,0.8496]
[1646766370145,0.0086134,2559.6,2559.3,1.30247441]
[1646766370343,0.0086134,2559.6,2559.5,14.63]
[1646766370546,0.0086134,2559.6,2559.5,15.9986]
[1646766370748,1.34e-05,2559.6,2559.5,17.2986]
[1646766370951,0.00393232,2560.2,2559.7,11.63]
[1646766371151,1.4145482,2561.4,2560.3,11.63]
[1646766371350,1.4145482,2561.4,2560.8,0.3816]
[1646766371547,1.4145482,2561.4,2560.8,0.67174058]
[1646766371904,1.4145482,2561.4,2560.9,0.97633]
[1646766372400,1.4145482,2561.4,2561.2,0.71407662]
[1646766372796,0.08229,2562.4,2561.3,5.5]
[1646766373002,0.25,2562.3,2561.3,5.968]
[1646766373195,0.25,2562.3,2561.7,11.63]
[1646766373396,0.25,2562.3,2561.8,0.3816]
[1646766373593,0.25,2562.3,2561.7,1.468]
[1646766373594,0.00211706,2562.0,2561.7,1.468]
[1646766373796,0.00211706,2562.0,2561.8,0.73160167]
[1646766374796,0.00605298,2562.0,2561.8,0.73160167]
[1646766375001,0.00183592,2562.3,2562.0,12.0116]
[1646766375198,0.08229,2563.4,2562.2,0.3816]
[1646766375199,2.10569461,2563.0,2562.2,0.3816]
[1646766375405,23.66714787,2564.3,2562.1,5.5]
[1646766375406,31.02714787,2564.3,2562.7,0.3816]
[1646766375650,23.66714787,2564.3,2563.2,2.91771]
[1646766375862,23.66714787,2564.3,2563.3,12.4796]
[1646766376250,23.66714787,2564.3,2563.3,13.4796]
[1646766376450,23.66714787,2564.3,2563.8,0.89396685]
[1646766376651,23.66714787,2564.3,2563.9,0.97518]
[1646766377051,0.22908623,2564.7,2563.9,0.97518]
[1646766377252,0.22908623,2564.7,2563.9,1.44318]
[1646766377654,0.08229,2564.6,2563.9,0.468]
[1646766377850,0.5,2563.9,2563.8,0.3]
[1646766378251,0.5,2563.9,2563.2,0.468]
[1646766378451,0.5,2563.9,2563.4,0.97539]
[1646766378653,0.5,2563.9,2563.7,2.91771]
[1646766378852,0.5,2563.9,2563.8,0.468]
[1646766379058,0.00211906,2564.4,2563.8,0.768]
[1646766379496,0.00211906,2564.4,2564.0,0.9751]
[1646766379695,0.01581965,2564.4,2564.0,1.7431]
[1646766379895,0.01581965,2564.4,2564.3,0.65827389]
[1646766380094,0.01581965,2564.4,2564.3,1.12627389]
[1646766380299,0.01581965,2564.4,2564.3,1.42627389]
[1646766380494,5.88e-06,2564.7,2564.5,0.97492]
[1646766380697,5.88e-06,2564.7,2564.6,0.468]
[1646766381497,0.00845317,2564.9,2564.6,0.468]
[1646766381498,5.905e-05,2564.9,2564.6,0.468]
[1646766381898,0.08229,2565.7,2564.8,1.9495407]
[1646766382098,0.08229,2565.7,2564.9,0.468]
[1646766382099,0.03229,2565.7,2564.9,0.468]
[1646766382298,0.03229,2566.1,2564.9,0.468]
[1646766382500,1.94956,2566.5,2564.9,0.768]
[1646766382703,1.94924,2566.9,2564.9,3.73571]
[1646766382905,0.03,2567.2,2565.9,0.88390218]
[1646766383148,0.03,2567.2,2566.0,0.468]
[1646766383149,0.03229,2567.0,2566.0,0.468]
[1646766383346,0.03229,2567.0,2566.0,0.768]
[1646766383950,0.03229,2566.5,2566.0,0.768]
[1646766384148,0.81338463,2567.1,2566.0,0.3]
[1646766384348,0.03229,2566.9,2565.8,0.3]
[1646766384556,0.03229,2566.2,2565.1,2.1465]
[1646766384748,0.00398454,2566.6,2565.2,1.768]
[1646766384749,0.03229,2566.0,2565.2,1.768]
[1646766384949,0.00398454,2566.6,2565.3,3.5]
[1646766384950,0.03627454,2566.6,2565.3,3.5]
[1646766385150,0.00398454,2566.6,2565.7,2.96771]
[1646766385350,0.00398454,2566.6,2566.0,0.97425]
[1646766385556,0.00398454,2566.6,2565.7,1.3]
[1646766385557,1.23354369,2565.8,2565.7,1.3]
[1646766385752,1.23354369,2565.8,2565.6,0.468]
[1646766385950,1.23354369,2565.8,2565.3,0.468]
[1646766386150,1.23354369,2565.8,2565.1,0.0529499]
[1646766386151,0.03229,2565.5,2565.1,0.0529499]
[1646766386357,0.03229,2565.2,2565.1,0.0529499]
[1646766386553,0.03229,2565.2,2564.0,0.468]
[1646766386554,0.03229,2565.2,2564.0,3.5]
[1646766386755,0.70539149,2565.5,2563.9,3.5]
[1646766387016,0.70539149,2565.5,2563.7,3.5]
[1646766387205,11.70154369,2565.8,2563.8,0.9750642]
[1646766387206,1.00741,2565.2,2563.8,0.9750642]
[1646766387406,1.00741,2565.2,2563.7,3.69556751]
[1646766387407,0.03229,2565.2,2564.0,2.96771]
[1646766387611,0.03229,2565.2,2564.1,3.968]
[1646766387808,0.03229,2565.2,2564.6,0.3]
[1646766388614,0.97495,2565.3,2564.6,0.3]
[1646766388615,1.00724,2565.3,2564.6,0.3]
[1646766388811,0.0040068,2565.0,2564.6,0.3]
[1646766389010,0.03229,2564.9,2564.6,0.3]
[1646766389210,0.03229,2564.9,2564.5,0.48910766]
[1646766389411,0.0040068,2565.0,2564.5,0.48910766]
[1646766389610,0.03229,2564.9,2564.5,0.48910766]
[1646766390011,0.41389,2564.9,2564.5,0.48910762]
[1646766390410,1.27907676,2565.0,2563.9,4.5]
[1646766390642,1.27907676,2565.0,2563.9,16.43]
[1646766391051,1.27907676,2565.0,2564.5,0.00400754]
[1646766391052,1.28308344,2565.0,2564.5,0.00400754]
[1646766391250,0.97907668,2565.0,2564.7,0.04664403]
[1646766391457,0.97907668,2565.0,2564.6,11.63]
[1646766391458,0.00400668,2565.0,2564.6,11.63]
[1646766391651,0.00400668,2565.0,2564.7,15.13]
[1646766391854,0.00400668,2565.0,2564.7,12.93]
[1646766391855,6.68e-06,2565.0,2564.7,12.93]
[1646766392053,6.68e-06,2565.0,2564.7,1.3]
[1646766392251,6.68e-06,2565.0,2564.7,0.3]
[1646766392451,0.97489668,2565.0,2564.5,0.30400754]
[1646766392652,0.97823313,2565.0,2564.5,0.30400754]
[1646766392852,0.97822645,2565.0,2564.4,0.00333724]
[1646766393053,1.27822645,2565.0,2564.4,0.00333724]
[1646766393457,1.27822645,2565.0,2564.1,12.63]
[1646766393458,1.65982645,2565.0,2564.1,1.0]
[1646766393655,0.03229,2564.6,2563.4,2.88582061]
[1646766393955,1.35693,2564.4,2563.4,0.5126]
[1646766394154,1.35693,2564.4,2563.1,0.19556751]
[1646766394155,0.3816,2564.4,2563.1,0.19556751]
[1646766394392,0.3,2564.5,2563.1,12.0116]
[1646766394598,2.92599,2564.6,2563.1,13.18254751]
[1646766394796,3.22599,2564.6,2563.1,1.17094751]
[1646766395002,0.03229,2563.9,2563.1,2.9259326]
[1646766395202,0.97523,2564.2,2562.8,1.95222963]
[1646766395203,1.30752,2564.2,2562.8,1.95222963]
[1646766395404,1.30752,2564.2,2562.8,0.00145963]
[1646766395405,0.3816,2564.0,2562.8,0.00145963]
[1646766395601,3.5,2564.1,2562.6,0.00145963]
[1646766395602,0.03229,2563.8,2562.6,0.00145963]
[1646766395802,2.95926,2563.8,2562.3,0.97566]
[1646766396004,0.81779061,2563.7,2562.3,1.900979]
[1646766396199,0.81779061,2563.7,2562.4,11.63145963]
[1646766396399,3.25926,2563.8,2562.4,11.63145963]
[1646766396604,3.22697,2563.8,2562.4,11.82702714]
[1646766397005,3.22697,2563.8,2562.6,12.60558]
[1646766397006,0.97566,2563.5,2562.6,12.60558]
[1646766397204,1.27566,2563.5,2562.6,13.60558]
[1646766397403,1.27566,2563.5,2562.6,13.80114751]
[1646766397606,0.97566,2563.5,2562.7,11.63]
[1646766397807,0.97566,2563.5,2562.7,12.63]
[1646766398007,0.97566,2563.5,2562.8,0.19556751]
[1646766398257,1.00795,2563.5,2562.6,0.30145963]
[1646766398456,1.38955,2563.5,2562.6,0.30145963]
[1646766398660,1.38955,2563.5,2562.5,1.3]
[1646766398858,1.30795,2563.5,2562.5,1.3]
[1646766399158,0.97566,2563.5,2562.4,12.61054945]
[1646766399355,1.27566,2563.5,2562.4,12.61054945]
[1646766399557,1.27566,2563.5,2562.4,12.93]
[1646766399863,1.27566,2563.5,2562.6,14.59771]
[1646766399864,0.97566,2563.5,2562.6,14.59771]
[1646766400060,3.9022,2564.4,2563.0,11.63]
[1646766400061,0.9753,2563.8,2563.0,11.63]
[1646766400258,0.9753,2563.8,2563.1,3.8816]
[1646766400460,0.9753,2563.8,2563.3,12.98692]
[1646766400659,19.52257151,2565.6,2563.6,2.96771]
[1646766400861,0.01478705,2564.8,2564.5,0.84596931]
[1646766401058,0.01478705,2564.8,2564.0,11.63]
[1646766401059,0.97494,2564.7,2564.1,15.5297364]
[1646766401263,0.97494,2564.7,2564.1,18.01557]
[1646766401458,0.97494,2564.7,2564.5,0.19556751]
[1646766401658,0.97494,2564.7,2564.5,0.66356751]
[1646766402095,0.97494,2564.7,2564.5,0.96356751]
[1646766402298,1.94978,2565.0,2564.5,2.31997621]
[1646766402501,0.97479,2565.1,2564.5,13.94997621]
[1646766402701,0.03229,2565.9,2564.5,14.94997621]
[1646766402899,0.03229,2565.9,2565.0,0.3]
[1646766403100,0.01233067,2566.2,2565.0,12.90469]
[1646766403101,4.634e-05,2565.1,2565.0,12.90469]
[1646766403304,4.634e-05,2565.1,2565.0,18.3150937]
[1646766403499,0.3898,2566.5,2565.4,12.0116]
[1646766403700,0.73354369,2565.8,2565.5,0.468]
[1646766403904,0.7714,2566.5,2565.5,0.768]
[1646766404100,0.03229,2566.2,2565.5,0.768]
[1646766404301,0.00843837,2565.9,2565.5,0.768]
[1646766404499,0.98307837,2565.9,2565.5,0.768]
[1646766404704,0.00843837,2565.9,2565.5,0.768]
[1646766404901,0.00843837,2565.9,2565.6,0.468]
[1646766405300,0.00843837,2565.9,2565.7,3.5]
[1646766405647,0.00843837,2565.9,2565.8,0.468]
[1646766405846,0.00733339,2565.9,2565.8,0.768]
[1646766406250,2.33062,2566.6,2565.8,0.3]
[1646766406454,0.97469,2565.9,2565.2,0.468]
[1646766406849,0.13819997,2566.9,2565.2,0.468]
[1646766407049,0.03229,2566.2,2565.3,3.5]
[1646766407251,0.03229,2566.2,2565.3,0.8848453]
[1646766407449,0.97475,2566.3,2565.4,3.0]
[1646766407651,0.3816,2566.2,2565.4,3.0]
[1646766407849,0.97467,2566.0,2565.4,3.3]
[1646766408052,0.97467,2566.0,2565.4,4.3]
[1646766408252,1.94934,2566.3,2565.4,4.3]
[1646766408453,2.9609,2567.2,2565.6,0.9745]
[1646766408454,0.3,2566.4,2565.6,0.9745]
[1646766408652,0.00208085,2566.2,2565.6,1.2745]
[1646766408851,0.00208085,2566.2,2565.6,1.17018436]
[1646766409056,0.00208085,2566.2,2565.6,0.87018436]
[1646766409251,0.97669085,2566.2,2565.6,1.17018436]
[1646766409698,0.00208085,2566.1,2565.6,1.17018436]
[1646766410099,0.00208085,2566.1,2565.6,0.3]
[1646766410301,0.00208085,2566.1,2565.4,1.3]
[1646766410700,0.00208085,2566.1,2565.5,3.5]
[1646766410900,0.00208085,2566.1,2565.3,0.468]
[1646766411101,0.00208085,2566.1,2565.6,0.02575395]
[1646766411304,0.01489842,2566.2,2565.7,0.468]
[1646766411501,0.01489842,2566.2,2565.6,0.02575395]
[1646766412001,0.3816,2566.1,2565.6,0.02575395]
[1646766412402,0.98949842,2566.2,2565.6,0.02575395]
[1646766413443,0.00401053,2566.0,2565.6,0.02575395]
[1646766413845,0.00401053,2566.0,2565.6,0.92534238]
[1646766414246,0.00401053,2566.0,2565.6,1.22534238]
[1646766414442,0.00401057,2565.9,2565.6,1.22534238]
[1646766414641,0.00401057,2565.9,2565.6,0.32575395]
[1646766415642,0.00782031,2565.9,2565.6,0.32575395]
[1646766415848,0.00782031,2565.9,2565.6,0.02575395]
[1646766415849,0.00380974,2565.9,2565.6,0.02575395]
[1646766416902,0.00761948,2565.9,2565.7,0.22042647]
[1646766417098,0.00380974,2565.9,2565.7,0.22042647]
[1646766417298,0.00380974,2565.9,2565.7,0.02485896]
[1646766418100,0.00175408,2565.9,2565.7,0.02485896]
[1646766419304,0.0148763,2566.0,2565.7,0.02485896]
[1646766419911,0.0148763,2566.0,2565.5,0.02570601]
[1646766419912,0.03758238,2565.6,2565.5,0.02570601]
[1646766420107,0.03758238,2565.6,2564.7,0.00162509]
[1646766420512,0.03758238,2565.6,2564.7,0.00325018]
[1646766420776,1.51182256,2565.5,2564.7,0.00162509]
[1646766420979,1.31251238,2565.6,2564.7,0.00162509]
[1646766421579,1.31251238,2565.6,2564.7,0.30162509]
[1646766421776,1.90117844,2565.5,2564.7,0.00532039]
[1646766421976,0.33758238,2565.6,2564.7,0.0036953]
[1646766421977,0.3816,2565.3,2564.7,0.0036953]
[1646766422380,14.93,2565.5,2564.7,0.0036953]
[1646766422381,12.0116,2565.1,2564.7,0.0036953]
[1646766422603,0.3816,2564.4,2563.3,0.83026686]
[1646766422781,0.73335133,2564.5,2563.3,0.83026686]
[1646766422782,1.35708,2564.5,2563.3,0.83026686]
[1646766422977,1.1672,2565.1,2563.4,3.5]
[1646766423178,1.51244586,2565.0,2563.4,3.5]
[1646766423579,1.4672,2565.1,2563.8,0.3816]
[1646766423882,1.2027,2565.3,2564.5,0.86990814]
[1646766424089,0.03758238,2565.6,2564.6,3.5]
[1646766424286,1.51389333,2565.5,2564.5,1.16783349]
[1646766425601,1.51389333,2565.5,2564.5,0.3]
[1646766425901,1.51389333,2565.5,2563.7,1.95031]
[1646766425902,0.60087407,2564.3,2563.7,1.95031]
[1646766426502,0.60087407,2564.3,2563.7,2.925496]
[1646766426705,0.60087407,2564.3,2563.8,0.73802408]
[1646766426903,0.60087407,2564.3,2563.9,0.97504]
[1646766427208,0.60087407,2564.3,2563.9,1.27504]
[1646766427405,0.60087407,2564.3,2564.0,3.5]
[1646766427612,1.5322,2565.4,2564.2,0.9750236]
[1646766427613,0.3899,2565.4,2564.2,0.9750236]
[1646766427807,0.03758238,2565.6,2565.1,0.88078639]
[1646766428008,0.03758238,2565.6,2565.1,1.18078639]
[1646766428305,0.03758238,2565.6,2565.2,12.4796]
[1646766428501,7.208e-05,2565.7,2565.3,5.5]
[1646766428704,7.208e-05,2565.7,2565.4,16.2796]
[1646766429003,0.9171,2566.7,2565.6,0.3816]
[1646766429202,1.50214011,2566.6,2566.3,1.09636081]
[1646766430201,0.9171,2566.7,2566.3,1.09636081]
[1646766430402,0.9171,2566.7,2566.4,0.468]
[1646766430603,0.8671,2566.7,2566.4,3.968]
[1646766430802,0.8671,2566.7,2566.4,4.7725]
[1646766431002,0.8671,2566.7,2566.4,2.2725]
[1646766431202,0.8171,2566.7,2566.4,2.2465931]
[1646766431404,0.82095572,2566.7,2566.3,1.3]
[1646766431605,0.82095572,2566.7,2566.3,0.3]
[1646766431803,0.82095572,2566.7,2566.2,0.3]
[1646766432014,0.82095572,2566.7,2565.8,3.8]
[1646766432215,0.82095572,2566.7,2565.8,14.285973]
[1646766432420,0.82095572,2566.7,2566.2,0.91684786]
[1646766432617,0.82095572,2566.7,2566.2,1.21684786]
[1646766432618,0.00385576,2566.6,2566.2,1.21684786]
[1646766432815,0.00385576,2566.6,2566.2,1.68484786]
[1646766433817,0.03,2567.2,2566.2,1.21684786]
[1646766434018,1.47324816,2567.1,2566.2,1.21684786]
[1646766434220,1.47324816,2567.1,2566.8,1.17332426]
[1646766434418,0.28,2567.2,2566.8,1.17332426]
[1646766434821,0.97432,2567.1,2566.8,1.17332426]
[1646766435025,0.03,2567.2,2566.8,1.17332426]
[1646766435518,0.03,2567.2,2566.9,0.468]
[1646766436452,0.00366324,2567.1,2566.9,0.468]
[1646766436649,0.00366324,2567.1,2566.9,1.44197]
[1646766437051,0.0195864,2568.0,2566.9,0.468]
[1646766437251,0.0195864,2568.0,2566.8,0.3]
[1646766437252,1.45237919,2567.9,2566.8,0.3]
[1646766437453,0.3816,2567.8,2566.8,0.3]
[1646766437655,1.83397919,2567.7,2566.4,0.02713144]
[1646766437854,1.45237919,2567.6,2566.4,0.02713144]
[1646766438052,1.45237919,2567.5,2566.4,0.02713144]
[1646766438251,0.97436,2567.8,2566.4,0.02713144]
[1646766438252,0.97425,2567.1,2566.5,0.76367597]
[1646766438452,2.24875,2567.6,2566.9,0.00163699]
[1646766438453,0.3,2567.6,2566.9,0.00163699]
[1646766438655,0.3,2567.2,2566.9,0.00163699]
[1646766438854,0.3,2567.6,2567.0,0.468]
[1646766439051,0.0195864,2568.0,2567.0,1.44197]
[1646766439253,1.44771628,2567.9,2567.0,0.768]
[1646766439493,0.3,2568.0,2567.0,1.44348521]
[1646766439695,1.44765554,2567.9,2567.5,0.95394726]
[1646766439900,0.6816,2568.0,2567.5,0.3]
[1646766440100,0.97399,2567.8,2567.5,0.3]
[1646766440304,2.80308161,2567.7,2567.2,0.00163684]
[1646766440504,1.35581,2567.7,2567.2,0.00163684]
[1646766440903,0.3816,2567.5,2567.2,0.00163684]
[1646766441102,0.3816,2567.5,2567.1,0.00367339]
[1646766441103,2.33022,2567.5,2567.1,0.00367339]
[1646766441505,0.97425,2567.6,2567.1,0.00367339]
[1646766442202,0.97628992,2567.6,2566.7,3.8816]
[1646766442402,0.00203992,2567.6,2567.4,0.81698187]
[1646766442806,0.00203992,2567.6,2567.4,1.11698187]
[1646766443447,0.09736,2568.3,2567.5,3.968]
[1646766443646,0.09736,2568.3,2567.5,0.468]
[1646766443944,1.43348802,2568.2,2567.9,0.7170652]
[1646766444146,0.09736,2568.3,2567.9,0.7170652]
[1646766444345,0.09736,2568.3,2567.9,1.4850652]
[1646766444346,0.1164118,2568.3,2567.9,1.4850652]
[1646766445150,0.0025708,2568.9,2568.0,17.13]
[1646766445354,0.0025708,2568.9,2568.1,16.1033644]
[1646766445545,0.0025708,2568.9,2568.3,12.98493]
[1646766445750,0.0025708,2568.9,2568.4,13.89781411]
[1646766445951,0.0025708,2568.9,2568.6,11.87619591]
[1646766446150,0.0025708,2568.9,2568.7,0.80511673]
[1646766446349,0.0025708,2568.9,2568.7,4.77311673]
[1646766446549,0.0025708,2568.9,2568.8,5.4463861]
[1646766446755,6.852e-05,2569.1,2568.9,5.5]
[1646766447004,0.0146578,2569.7,2569.1,5.5]
[1646766447204,0.0169142,2569.9,2569.2,0.468]
[1646766447401,0.0235384,2570.1,2569.3,5.5]
[1646766447606,0.0394104,2570.1,2569.9,0.896162]
[1646766447804,0.0394104,2570.1,2569.9,0.3]
[1646766448008,0.0394104,2570.1,2569.8,0.768]
[1646766448205,0.0394104,2570.1,2569.9,0.468]
[1646766449008,6e-05,2570.1,2570.0,9.71727748]
[1646766449209,0.01266964,2570.4,2570.1,5.5]
[1646766449210,6.964e-05,2570.4,2570.1,5.5]
[1646766449407,6.964e-05,2570.4,2570.2,0.468]
[1646766449607,6.964e-05,2570.4,2570.2,0.768]
[1646766450209,6.964e-05,2570.4,2570.2,4.268]
[1646766450410,6.964e-05,2570.4,2570.3,0.8013981]
[1646766450657,6.964e-05,2570.4,2570.3,0.468]
[1646766450851,0.04213298,2570.4,2570.3,0.468]
[1646766451050,3.298e-05,2570.4,2570.3,1.44063]
[1646766451251,0.9,2570.7,2570.4,5.5]
[1646766451450,0.01630472,2570.8,2570.5,11.4129]
[1646766451649,0.01630472,2570.8,2570.6,0.468]
[1646766452451,0.98897472,2570.8,2570.6,0.468]
[1646766452953,0.18482999,2570.5,2570.0,0.1085047]
[1646766453552,1.15772999,2570.5,2570.0,2.522096]
[1646766453951,1.15772999,2570.5,2570.0,0.5765047]
[1646766454152,1.15772999,2570.5,2570.0,0.1085047]
[1646766454802,1.15772999,2570.5,2570.0,0.05443924]
[1646766455104,1.15980454,2570.5,2570.0,0.05443924]
[1646766456205,1.15980454,2570.5,2570.1,0.75038572]
[1646766456604,0.00203028,2570.4,2570.1,1.05038572]
[1646766457407,0.00203028,2570.4,2570.1,2.02323362]
[1646766457604,0.00203028,2570.4,2570.1,2.49123362]
[1646766457804,0.18690454,2570.5,2570.1,2.49123362]
[1646766458265,0.01630472,2570.8,2570.2,9.0]
[1646766458453,0.01630472,2570.8,2570.4,11.63]
[1646766458656,0.01630472,2570.8,2570.6,11.63]
[1646766458849,0.01630472,2570.8,2570.7,12.098]
[1646766459254,0.01630472,2570.8,2570.7,15.19908044]
[1646766459452,0.01630472,2570.8,2570.7,3.56908044]